bitfinex/quotes_ETHUSD_20251218
["timestamp","ask_amount","ask_price","bid_price","bid_amount"]
[1766100498881,4.7992,2830.9,2830.2,0.2101]
[1766100499758,0.001,2831.0,2830.2,0.2101]
[1766100500075,0.46538023,2831.0,2830.2,0.2101]
[1766100501488,0.001,2831.0,2830.2,0.2101]
[1766100502787,0.001,2831.3,2829.9,0.55369306]
[1766100502988,0.001,2831.3,2830.0,0.81425423]
[1766100503288,0.001,2831.3,2830.0,0.56]
[1766100503289,3.2362,2830.8,2830.0,0.56]
[1766100503466,4.7992,2830.5,2829.6,0.002]
[1766100504179,0.56,2830.8,2829.6,0.002]
[1766100504676,1.563,2830.4,2829.6,0.002]
[1766100504990,4.7992,2830.6,2829.6,0.002]
[1766100505287,3.2362,2830.4,2829.6,0.002]
[1766100505490,4.7992,2830.3,2829.6,0.002]
[1766100506156,3.2362,2830.7,2829.6,0.002]
[1766100506362,4.7992,2830.7,2829.6,0.002]
[1766100507181,0.46438023,2830.7,2829.6,0.002]
[1766100507492,4.7992,2830.7,2829.6,0.002]
[1766100507874,1.02438023,2830.8,2829.6,0.002]
[1766100508292,3.2362,2830.7,2829.6,0.002]
[1766100508586,4.7992,2830.6,2829.6,0.002]
[1766100511793,4.8002,2830.6,2829.6,0.002]
[1766100512996,0.001,2830.6,2829.6,0.002]
[1766100513796,0.001,2830.9,2829.6,0.002]
[1766100515394,0.46438023,2830.8,2829.6,0.002]
[1766100516084,0.001,2830.9,2829.6,0.002]
[1766100517165,0.46538023,2831.3,2829.7,0.405504]
[1766100517361,1.02538023,2831.3,2830.1,6.50331702]
[1766100517598,5.82458023,2831.3,2830.1,6.50331702]
[1766100518298,5.82458023,2831.3,2830.6,6.50331702]
[1766100518299,0.001,2831.3,2830.6,6.50331702]
[1766100518475,0.001,2831.3,2830.4,6.50331702]
[1766100518806,4.8002,2831.3,2830.5,0.6503317]
[1766100518972,0.001,2831.3,2830.4,0.56]
[1766100519175,1.563,2831.1,2830.4,0.56]
[1766100519370,4.7992,2831.1,2830.4,0.56]
[1766100519772,3.2362,2830.8,2830.1,0.002]
[1766100519993,4.7992,2830.8,2830.1,0.002]
[1766100521768,1.563,2831.0,2830.1,0.002]
[1766100521973,3.2362,2831.1,2830.1,6.50531702]
[1766100522173,3.2362,2831.1,2830.2,0.6505317]
[1766100522487,4.7992,2831.1,2830.2,0.6505317]
[1766100523167,1.563,2831.1,2830.2,0.6505317]
[1766100523372,4.7519,2830.8,2830.1,0.002]
[1766100528203,0.001,2831.1,2830.1,0.002]
[1766100528372,0.001,2831.1,2830.1,6.50531702]
[1766100529540,0.001,2831.1,2830.2,0.03533319]
[1766100529689,0.001,2831.1,2830.1,6.50531702]
[1766100529889,0.001,2831.1,2830.2,0.69716973]
[1766100530090,0.001,2831.1,2830.1,0.002]
[1766100531031,4.7529,2831.1,2830.1,0.002]
[1766100532024,3.3132,2831.1,2830.1,0.002]
[1766100533026,4.7529,2831.1,2830.1,0.002]
[1766100533330,4.7519,2831.0,2830.1,0.002]
[1766100534291,4.7519,2830.9,2830.1,0.002]
[1766100534499,6.50331702,2831.0,2830.1,0.002]
[1766100534690,3.3122,2830.9,2830.1,0.002]
[1766100534892,4.7519,2830.8,2830.1,0.002]
[1766100536714,0.001,2831.1,2830.1,0.03733444]
[1766100536917,4.7519,2831.0,2830.1,1.31760317]
[1766100537087,4.7519,2831.0,2830.1,0.561]
[1766100537507,0.001,2831.1,2830.1,0.561]
[1766100538910,4.7529,2831.1,2830.1,0.561]
[1766100539425,0.001,2831.1,2830.1,0.561]
[1766100539591,4.7519,2831.0,2830.1,0.561]
[1766100545741,0.001,2831.1,2830.1,0.561]
[1766100545932,0.001,2831.1,2830.2,0.03533319]
[1766100546136,0.001,2831.1,2830.1,0.561]
[1766100546433,0.001,2831.1,2830.2,0.03533319]
[1766100546999,4.5149,2830.2,2829.6,0.002]
[1766100547207,4.55023334,2830.1,2829.6,0.002]
[1766100547726,6.5084354,2830.5,2829.6,0.002]
[1766100547904,4.5149,2830.5,2829.6,0.002]
[1766100549011,4.97928023,2830.7,2829.6,0.002]
[1766100549211,0.59533334,2830.6,2829.6,0.002]
[1766100550232,0.46438023,2830.5,2829.6,0.002]
[1766100550531,0.03533334,2830.4,2829.6,0.002]
[1766100553914,0.49971357,2830.5,2829.6,0.002]
[1766100554659,0.46438023,2830.5,2829.6,0.002]
[1766100555321,0.49971357,2830.5,2829.6,0.002]
[1766100555524,0.46438023,2830.5,2829.6,0.002]
[1766100555791,0.49971357,2830.5,2829.6,0.002]
[1766100555924,4.78653334,2830.5,2829.6,0.002]
[1766100557452,0.03533334,2830.5,2829.6,0.002]
[1766100557745,0.56,2830.6,2829.6,6.5104354]
[1766100557948,0.46438023,2830.9,2829.7,0.405504]
[1766100558149,5.21558023,2830.9,2829.7,0.405504]
[1766100558734,0.46438023,2830.7,2829.7,0.405504]
[1766100558934,0.46438023,2830.7,2829.8,0.69159394]
[1766100559234,3.30923334,2830.6,2829.9,0.559]
[1766100560042,3.30923334,2830.6,2829.8,0.69159394]
[1766100560348,3.30923334,2830.6,2829.8,1.25059394]
[1766100560635,4.7512,2830.6,2829.8,1.25059394]
[1766100560842,4.7512,2830.6,2829.8,0.559]
[1766100561144,0.46438023,2830.7,2829.8,0.559]
[1766100561344,0.001,2831.3,2830.4,6.5084354]
[1766100561545,4.7522,2831.7,2830.7,6.5084354]
[1766100561843,3.2749,2831.7,2830.7,6.5084354]
[1766100562027,0.001,2831.7,2830.8,0.405504]
[1766100563442,0.001,2831.0,2830.7,0.405504]
[1766100563744,0.001,2831.7,2830.7,0.405504]
[1766100564337,0.03533334,2831.6,2830.7,0.405504]
[1766100564949,0.001,2831.8,2830.8,0.08931283]
[1766100565742,0.03633334,2831.8,2830.7,0.405504]
[1766100567937,4.7522,2831.8,2830.7,0.405504]
[1766100568253,0.03533334,2831.7,2830.7,0.405504]
[1766100570828,0.001,2831.8,2830.7,0.405504]
[1766100571033,4.78753334,2831.8,2830.7,0.405504]
[1766100571229,0.03633334,2831.8,2830.8,0.08931283]
[1766100571452,0.001,2832.1,2831.1,0.405504]
[1766100571749,0.001,2832.1,2831.2,0.559]
[1766100571925,0.001,2832.2,2831.2,0.559]
[1766100571926,0.001,2832.2,2831.2,0.64831283]
[1766100572548,0.001,2832.2,2831.2,0.559]
[1766100573947,4.7522,2832.2,2831.2,0.559]
[1766100574725,4.7512,2832.0,2830.9,0.405504]
[1766100575052,4.7512,2832.0,2831.0,0.559]
[1766100576163,0.001,2832.5,2831.4,0.08931283]
[1766100576537,0.001,2832.5,2831.5,0.405504]
[1766100576739,0.56,2832.9,2831.7,0.08931283]
[1766100577267,0.001,2832.9,2831.9,0.08931283]
[1766100578169,0.001,2833.0,2831.9,0.08931283]
[1766100578340,0.46538023,2833.2,2831.9,0.08931283]
[1766100578536,0.001,2832.2,2832.0,0.405504]
[1766100578862,0.46538023,2833.2,2832.0,0.405504]
[1766100579067,0.46438023,2833.1,2832.0,0.405504]
[1766100580543,0.46438023,2833.0,2832.0,0.405504]
[1766100581263,4.7512,2833.1,2832.0,0.405504]
[1766100583778,4.3978,2833.0,2832.0,0.405504]
[1766100584642,3.0117,2833.1,2832.0,0.405504]
[1766100584973,4.3978,2832.9,2832.0,0.405504]
[1766100586660,0.001,2833.1,2832.0,0.405504]
[1766100586975,4.3978,2833.0,2832.0,0.405504]
[1766100587174,0.001,2833.1,2832.0,0.405504]
[1766100587467,3.53070961,2833.1,2832.0,0.405504]
[1766100587657,3.53070961,2833.1,2831.2,3.62135436]
[1766100587867,6.49428999,2833.0,2831.7,0.405504]
[1766100588054,4.3978,2832.6,2831.7,0.405504]
[1766100588384,6.49428999,2832.7,2831.4,3.82]
[1766100588668,3.0117,2832.1,2831.4,4.379]
[1766100588839,4.3978,2832.1,2831.4,4.379]
[1766100589682,3.0117,2832.3,2831.4,4.379]
[1766100589846,4.3978,2832.1,2831.4,4.379]
[1766100590047,4.3978,2832.1,2831.4,4.8169]
[1766100590448,4.3978,2832.1,2831.5,0.46438023]
[1766100591077,4.3978,2832.4,2831.5,0.46438023]
[1766100591251,0.559,2832.5,2831.5,0.46438023]
[1766100591452,4.3978,2832.4,2831.4,4.8169]
[1766100592153,0.559,2832.5,2831.4,4.8169]
[1766100592363,4.08948416,2832.5,2831.4,4.8169]
[1766100592564,1.3861,2832.3,2831.4,4.8169]
[1766100592879,4.3978,2832.3,2831.4,4.8169]
[1766100593374,0.46438023,2832.4,2831.4,4.8169]
[1766100593575,4.86218023,2832.4,2831.4,4.8169]
[1766100593755,4.86218023,2832.4,2831.4,0.9969]
[1766100593955,4.86218023,2832.4,2831.4,0.559]
[1766100594281,6.49428999,2832.2,2831.1,0.002]
[1766100594485,4.3978,2832.0,2831.1,0.002]
[1766100596662,0.46438023,2832.1,2831.1,0.002]
[1766100597054,1.3861,2831.9,2831.1,0.002]
[1766100597270,4.3978,2831.9,2831.1,0.002]
[1766100599974,0.46438023,2832.1,2831.1,0.002]
[1766100600363,0.46438023,2832.1,2831.2,0.405504]
[1766100600697,0.46438023,2832.1,2831.3,1.2491794]
[1766100601058,7.92826721,2832.5,2831.3,1.2491794]
[1766100601498,3.53046721,2832.5,2831.3,1.2491794]
[1766100601792,4.3978,2832.4,2831.3,1.2491794]
[1766100601961,0.001,2832.5,2831.3,1.2491794]
[1766100602166,4.5928,2832.4,2831.3,1.2491794]
[1766100602385,0.001,2832.5,2831.3,1.2491794]
[1766100602576,1.3947,2832.3,2831.3,1.2491794]
[1766100602775,4.5928,2832.3,2831.3,1.2491794]
[1766100603179,0.46438023,2832.2,2831.3,1.2491794]
[1766100605703,0.001,2832.5,2831.3,1.2491794]
[1766100605881,3.53067861,2833.2,2832.0,6.49428999]
[1766100605882,0.001,2833.1,2832.0,6.49428999]
[1766100606198,0.46438023,2833.0,2832.1,0.649429]
[1766100606499,0.46438023,2833.0,2832.0,0.559]
[1766100607476,0.001,2833.1,2832.0,0.559]
[1766100608770,0.001,2833.1,2832.1,0.405504]
[1766100608972,0.001,2833.1,2832.1,0.49481683]
[1766100609199,0.001,2833.1,2832.4,0.405504]
[1766100609378,0.001,2833.1,2832.5,0.559]
[1766100610802,0.001,2833.2,2832.5,0.559]
[1766100613401,4.2618,2833.2,2832.5,0.559]
[1766100614102,0.001,2833.2,2832.5,0.559]
[1766100614908,0.46538023,2833.3,2832.5,7.0517481]
[1766100615211,7.0527481,2833.9,2832.5,7.0517481]
[1766100615212,0.46438023,2833.8,2832.7,6.4927481]
[1766100615507,4.2618,2833.9,2832.7,6.4927481]
[1766100615852,0.46438023,2833.8,2832.7,6.4927481]
[1766100616007,4.2618,2833.9,2832.9,6.4927481]
[1766100616187,4.2618,2833.9,2833.0,0.559]
[1766100616388,4.2618,2833.9,2833.1,0.70517481]
[1766100616706,4.2618,2833.9,2833.1,7.19792291]
[1766100616707,0.001,2833.9,2833.1,7.19792291]
[1766100616907,0.001,2834.1,2833.1,7.19792291]
[1766100617285,4.2618,2833.9,2833.1,7.19792291]
[1766100617589,4.2618,2833.9,2833.1,0.70517481]
[1766100617789,0.001,2833.9,2833.1,0.70517481]
[1766100617991,0.001,2833.9,2832.6,0.70517481]
[1766100618319,0.001,2833.9,2832.7,0.559]
[1766100618320,2.9503,2833.6,2832.7,0.559]
[1766100618511,1.3105,2833.3,2832.3,0.405504]
[1766100618683,6.4927481,2833.3,2832.4,0.559]
[1766100619110,2.9503,2833.2,2832.4,0.559]
[1766100619295,4.2608,2833.0,2832.4,0.559]
[1766100621613,3.52909236,2833.6,2832.0,0.08931283]
[1766100621790,1.02338023,2833.7,2832.1,0.964504]
[1766100621791,4.55239319,2833.7,2832.1,0.964504]
[1766100622402,4.2608,2833.6,2832.1,0.964504]
[1766100622620,0.559,2833.7,2832.1,0.964504]
[1766100622785,1.3105,2833.5,2832.1,0.964504]
[1766100622996,2.9503,2833.2,2832.1,0.964504]
[1766100623191,2.9503,2833.0,2832.1,0.964504]
[1766100623511,4.2608,2833.0,2832.1,0.964504]
[1766100624995,4.2608,2833.0,2832.1,0.405504]
[1766100625216,4.2608,2833.0,2832.2,0.559]
[1766100626124,0.46438023,2833.7,2832.3,0.405504]
[1766100626422,1.3105,2833.3,2832.3,0.405504]
[1766100626594,4.2608,2833.3,2832.3,0.405504]
[1766100626794,1.3105,2833.2,2832.3,0.405504]
[1766100626995,4.2608,2833.2,2832.3,0.405504]
[1766100627903,0.46438023,2833.8,2832.8,0.405504]
[1766100628116,0.46438023,2833.8,2832.9,0.559]
[1766100628423,4.2618,2833.9,2833.0,0.405504]
[1766100628649,0.001,2833.9,2833.0,0.405504]
[1766100631620,1.3115,2833.9,2833.0,0.405504]
[1766100631920,4.2618,2833.9,2833.0,0.405504]
[1766100633542,4.2618,2833.9,2833.1,0.559]
[1766100636846,4.2618,2833.9,2833.0,0.405504]
[1766100637147,4.2618,2833.9,2833.1,0.559]
[1766100637545,0.001,2833.9,2833.1,0.559]
[1766100637936,0.001,2833.9,2833.1,0.64831283]
[1766100638655,0.001,2833.9,2833.2,0.405504]
[1766100641453,0.001,2833.9,2833.2,7.70516923]
[1766100641629,0.001,2833.9,2833.3,0.83534821]
[1766100642424,4.2618,2833.9,2833.4,0.559]
[1766100643164,1.2469,2833.4,2833.1,0.559]
[1766100646678,3.0656,2833.5,2833.1,0.559]
[1766100647171,3.0656,2833.8,2833.1,0.559]
[1766100647668,4.3125,2833.8,2833.1,0.559]
[1766100651696,0.001,2833.9,2833.1,0.559]
[1766100652072,4.3125,2833.8,2833.1,0.559]
[1766100652665,1.2469,2833.7,2833.1,0.559]
[1766100654668,1.2469,2833.6,2833.1,0.559]
[1766100654901,4.3125,2833.6,2833.1,0.559]
[1766100655368,1.2469,2833.5,2833.1,0.559]
[1766100655569,4.3125,2833.5,2833.1,0.559]
[1766100656300,4.3125,2833.5,2833.0,0.002]
[1766100656601,3.52970961,2833.9,2833.0,0.561]
[1766100656801,3.0656,2833.4,2833.0,0.561]
[1766100656999,4.3125,2833.2,2833.0,0.561]
[1766100657901,1.2469,2833.1,2832.5,0.559]
[1766100658101,4.3125,2833.1,2832.5,0.559]
[1766100658990,4.3125,2833.1,2833.0,0.002]
[1766100660276,4.3125,2833.1,2832.5,0.559]
[1766100663018,3.0053,2833.6,2832.4,0.002]
[1766100663220,3.0053,2833.2,2832.4,0.002]
[1766100663424,4.3397,2833.1,2832.4,0.002]
[1766100668911,0.559,2833.8,2832.8,6.49376202]
[1766100669124,0.001,2833.9,2833.2,6.49376202]
[1766100669415,0.001,2833.9,2832.9,0.64831283]
[1766100669416,0.001,2834.1,2833.3,0.08931283]
[1766100669598,4.08676202,2834.7,2833.3,0.08931283]
[1766100669599,4.8987,2834.7,2833.5,0.08931283]
[1766100669799,4.8987,2834.7,2833.6,1.29787301]
[1766100670001,0.46438023,2834.6,2833.6,1.29787301]
[1766100670428,4.3397,2834.5,2833.6,0.559]
[1766100671305,1.3344,2834.5,2833.6,0.559]
[1766100671831,0.46438023,2834.6,2833.6,0.559]
[1766100672626,4.66938023,2834.6,2833.6,0.559]
[1766100673144,1.3173,2834.5,2833.6,0.559]
[1766100674803,1.3173,2834.5,2833.7,0.559]
[1766100675005,4.205,2834.5,2833.7,0.559]
[1766100675735,0.001,2834.6,2833.7,0.559]
[1766100678737,0.001,2834.6,2833.8,7.38873006]
[1766100678905,0.46438023,2835.0,2834.2,7.29941723]
[1766100679106,4.205,2835.7,2834.6,0.08931283]
[1766100679320,4.205,2835.7,2834.7,0.0352771]
[1766100679644,0.001,2835.8,2834.6,0.08931283]
[1766100680010,4.205,2835.6,2834.6,0.08931283]
[1766100680412,4.205,2835.6,2834.7,0.405504]
[1766100680619,0.001,2835.8,2834.8,0.559]
[1766100680819,0.001,2835.8,2834.8,0.64831283]
[1766100681907,4.206,2835.8,2834.8,0.559]
[1766100682735,0.001,2835.7,2834.8,0.559]
[1766100683217,4.206,2835.7,2834.8,0.559]
[1766100684319,1.3173,2835.6,2834.8,0.559]
[1766100684903,4.205,2835.2,2834.2,0.55369306]
[1766100685136,4.205,2835.2,2834.6,0.559]
[1766100687204,4.205,2835.2,2834.6,0.558]
[1766100687940,1.3173,2835.2,2834.3,0.405504]
[1766100688135,2.8877,2835.4,2834.4,0.558]
[1766100688324,2.8877,2835.4,2834.4,0.64731283]
[1766100688921,4.205,2835.4,2834.4,0.64731283]
[1766100690235,2.8887,2835.7,2834.5,0.002]
[1766100690443,4.205,2835.6,2834.5,0.002]
[1766100690616,0.559,2835.7,2834.5,0.002]
[1766100691035,4.205,2835.6,2834.5,0.002]
[1766100691844,0.559,2835.7,2834.5,0.002]
[1766100692343,1.3173,2835.5,2834.5,0.002]
[1766100692544,2.8877,2835.6,2834.5,0.002]
[1766100692715,4.205,2835.6,2834.5,0.002]
[1766100693646,4.205,2835.6,2835.2,0.76255078]
[1766100693820,1.3173,2835.6,2835.2,0.76255078]
[1766100694146,0.559,2835.7,2835.2,0.76255078]
[1766100694147,0.001,2835.7,2835.2,0.76255078]
[1766100694330,0.001,2835.8,2835.2,0.76255078]
[1766100694641,0.46438023,2836.1,2835.2,0.76255078]
[1766100694839,4.205,2836.2,2835.2,0.76255078]
[1766100694840,4.205,2836.2,2835.3,0.08931283]
[1766100695146,4.205,2836.2,2835.4,0.558]
[1766100698248,0.001,2836.1,2835.4,0.558]
[1766100699317,4.206,2836.1,2835.4,0.558]
[1766100705317,3.52702466,2836.1,2835.2,0.76255078]
[1766100705529,4.0645,2836.0,2835.2,0.76255078]
[1766100705739,4.08498076,2836.1,2835.2,0.76255078]
[1766100705982,2.7844,2835.9,2835.2,0.76255078]
[1766100706138,1.2801,2835.4,2834.7,0.558]
[1766100706338,4.0645,2835.2,2834.6,0.558]
[1766100707050,0.46438023,2835.5,2834.5,0.002]
[1766100707234,3.52735646,2835.0,2834.0,0.001]
[1766100707546,0.46438023,2834.9,2834.0,0.001]
[1766100708118,4.0645,2834.9,2834.0,0.001]
[1766100708725,2.7844,2835.5,2834.0,0.001]
[1766100708925,0.46438023,2835.2,2834.0,0.09031283]
[1766100709126,4.52888023,2835.2,2834.0,0.09031283]
[1766100709458,1.2801,2835.1,2834.0,0.09031283]
[1766100709745,4.0645,2835.1,2834.0,0.09031283]
[1766100710753,0.46438023,2835.2,2834.0,0.001]
[1766100710951,3.52696363,2835.3,2834.0,0.001]
[1766100711131,2.7844,2834.8,2834.0,0.001]
[1766100711327,4.0645,2834.7,2834.0,0.001]
[1766100713751,2.7844,2834.7,2834.0,0.001]
[1766100713930,1.2801,2834.6,2834.0,0.001]
[1766100714431,4.0645,2834.6,2834.0,0.001]
[1766100717963,1.2801,2834.6,2834.0,0.001]
[1766100718470,1.2801,2834.8,2834.0,0.001]
[1766100718968,2.7844,2834.9,2834.0,0.001]
[1766100719139,4.0645,2834.8,2834.0,0.001]
[1766100719957,4.08539385,2835.0,2834.0,0.001]
[1766100720165,0.558,2835.0,2834.0,0.001]
[1766100720356,4.0645,2834.9,2834.0,0.001]
[1766100720863,0.558,2835.0,2834.0,0.001]
[1766100721036,1.2801,2834.7,2834.0,0.001]
[1766100721331,0.558,2835.0,2834.0,0.001]
[1766100721969,3.7577,2834.9,2834.0,0.001]
[1766100722139,0.558,2835.0,2834.0,0.001]
[1766100722338,1.2102,2834.6,2834.0,0.001]
[1766100722543,3.7577,2834.5,2834.0,0.001]
[1766100725072,2.5475,2834.2,2833.4,0.002]
[1766100725266,3.7577,2834.1,2833.4,0.56]
[1766100726049,0.46438023,2834.4,2833.4,0.56]
[1766100726267,0.558,2834.6,2833.5,0.438]
[1766100726472,3.7577,2834.3,2833.5,0.438]
[1766100727373,1.02238023,2834.6,2833.5,0.438]
[1766100727547,1.2102,2834.2,2833.5,0.438]
[1766100727971,3.7577,2834.2,2833.5,0.438]
[1766100728671,3.7577,2834.3,2833.4,0.56]
[1766100729064,2.5475,2834.3,2833.4,0.56]
[1766100729277,3.7577,2834.1,2833.4,0.56]
[1766100734178,3.7577,2834.1,2833.5,0.558]
[1766100734179,2.6452,2834.1,2833.5,0.558]
[1766100734364,3.8398,2833.9,2833.5,0.558]
[1766100735367,3.8398,2833.9,2833.4,0.56]
[1766100735878,0.46438023,2834.5,2833.4,0.56]
[1766100736077,1.1946,2834.3,2833.4,0.56]
[1766100736285,3.8398,2834.1,2833.4,0.998]
[1766100736577,3.8398,2834.5,2833.5,0.08931283]
[1766100736756,2.6452,2834.9,2833.7,0.08931283]
[1766100736963,2.6452,2834.9,2833.9,0.08931283]
[1766100737158,2.6452,2834.9,2833.9,0.64731283]
[1766100737363,2.6452,2834.8,2833.9,0.558]
[1766100738455,0.001,2834.5,2833.9,0.558]
[1766100745183,1.1946,2834.3,2833.9,0.558]
[1766100745357,2.6452,2834.4,2833.9,1.3524911]
[1766100745557,1.1956,2834.5,2833.9,1.3524911]
[1766100745758,0.001,2834.5,2833.9,8.65008927]
[1766100746185,0.001,2834.5,2834.1,7.29759817]
[1766100746958,1.1946,2835.0,2834.3,7.29759817]
[1766100747157,2.6462,2835.1,2834.7,7.29759817]
[1766100747370,3.11058023,2835.1,2834.7,7.29759817]
[1766100747761,3.11058023,2835.1,2834.4,0.73328815]
[1766100747962,2.6462,2835.1,2834.5,7.29759817]
[1766100748191,0.001,2835.1,2834.7,7.29759817]
[1766100748794,3.8398,2835.6,2834.9,7.29759817]
[1766100749288,0.46438023,2835.5,2834.9,7.29759817]
[1766100749463,1.65898023,2835.5,2834.9,7.29759817]
[1766100749664,3.8398,2835.5,2834.9,7.29759817]
[1766100750061,0.001,2835.7,2834.9,7.29759817]
[1766100750261,0.001,2835.7,2835.3,7.29759817]
[1766100751190,1.1946,2835.9,2835.3,7.29759817]
[1766100751974,3.8398,2835.9,2835.3,7.29759817]
[1766100752692,0.46538023,2836.1,2835.3,7.29759817]
[1766100752999,3.8398,2835.7,2835.1,7.85559817]
[1766100753202,3.8398,2835.7,2835.1,8.71971397]
[1766100754390,3.8408,2835.9,2835.4,7.29759817]
[1766100754600,3.8398,2835.8,2835.4,7.29759817]
[1766100754903,3.8398,2835.8,2835.2,7.29759817]
[1766100755971,1.1946,2835.7,2835.3,0.558]
[1766100757095,0.001,2835.9,2835.4,7.29759817]
[1766100757096,1.1956,2835.9,2835.4,7.29759817]
[1766100757302,1.65998023,2835.9,2835.4,7.29759817]
[1766100758072,3.8408,2835.9,2835.4,7.29759817]
[1766100758676,2.6452,2835.7,2835.4,7.29759817]
[1766100758897,3.8398,2835.7,2835.3,0.558]
[1766100759207,0.001,2835.9,2835.3,0.558]
[1766100759393,0.001,2835.9,2835.0,7.29759817]
[1766100759592,1.1946,2835.4,2835.1,0.558]
[1766100760203,2.6452,2835.7,2835.2,7.29759817]
[1766100760401,3.8398,2835.7,2835.2,7.29759817]
[1766100760797,2.6452,2835.8,2834.6,0.46438023]
[1766100761005,3.8398,2835.6,2835.1,7.29759817]
[1766100761315,3.8398,2835.6,2835.1,7.85559817]
[1766100763416,0.001,2835.9,2835.3,7.29759817]
[1766100763619,3.5982,2835.9,2835.3,7.29759817]
[1766100764118,3.5972,2835.7,2835.1,7.85559817]
[1766100764321,1.1422,2835.6,2835.1,7.85559817]
[1766100764520,3.5972,2835.6,2835.1,7.85559817]
[1766100764818,3.5972,2835.6,2835.2,0.558]
[1766100765400,0.001,2835.9,2835.2,0.558]
[1766100765600,2.455,2835.6,2835.2,0.558]
[1766100765796,3.5972,2835.6,2835.2,0.558]
[1766100772418,3.5972,2835.6,2835.1,0.001]
[1766100772629,1.1422,2835.4,2834.8,0.558]
[1766100772794,3.5972,2835.2,2834.8,0.558]
[1766100774519,0.002,2835.8,2834.7,3.82]
[1766100774520,2.455,2835.6,2834.7,3.82]
[1766100774704,1.1422,2835.3,2834.7,4.378]
[1766100774904,3.5972,2835.1,2834.7,4.378]
[1766100775490,0.558,2835.7,2834.7,4.378]
[1766100775491,1.1422,2835.5,2834.7,4.378]
[1766100775708,3.5972,2835.4,2834.8,7.29759817]
[1766100775908,2.455,2835.4,2834.8,7.29759817]
[1766100776105,1.1422,2835.3,2834.8,7.29759817]
[1766100776305,1.1422,2835.2,2834.8,7.29759817]
[1766100776705,1.1422,2835.2,2834.7,4.378]
[1766100776926,2.455,2835.2,2834.7,4.378]
[1766100777226,1.1422,2835.1,2834.7,4.378]
[1766100777815,1.1422,2835.1,2834.8,0.001]
[1766100778600,2.455,2835.2,2834.8,0.001]
[1766100780042,3.5972,2835.2,2834.8,0.001]
[1766100780926,3.5972,2835.2,2834.8,0.559]
[1766100781299,2.5352,2835.6,2833.9,1.35018416]
[1766100781505,1.1372,2834.7,2834.0,0.558]
[1766100781816,3.6724,2834.5,2833.9,0.7964911]
[1766100782020,3.6724,2834.5,2834.0,0.558]
[1766100782605,3.6724,2834.5,2834.0,1.02238023]
[1766100782806,3.6724,2834.5,2834.0,0.558]
[1766100783502,1.1372,2835.0,2834.1,7.29759817]
[1766100783704,0.558,2835.3,2834.1,7.29759817]
[1766100783705,3.6724,2834.8,2834.1,7.29759817]
[1766100784502,0.558,2835.3,2834.1,7.29759817]
[1766100784723,2.5352,2835.0,2834.1,7.29759817]
[1766100784924,3.6724,2834.7,2834.1,7.29759817]
[1766100785810,4.08497595,2835.3,2833.9,0.002]
[1766100785811,2.5352,2834.8,2833.9,0.002]
[1766100786018,1.1372,2834.3,2833.9,0.002]
[1766100787946,1.1372,2834.3,2834.0,0.001]
[1766100788445,0.558,2834.8,2833.7,0.558]
[1766100788446,3.6724,2834.0,2833.7,0.558]
[1766100789826,1.02238023,2834.8,2833.7,0.558]
[1766100790026,2.5352,2834.7,2833.7,0.558]
[1766100790334,1.02238023,2834.8,2833.7,0.558]
[1766100790542,2.5352,2834.5,2833.7,0.558]
[1766100790738,2.5352,2834.3,2833.7,0.558]
[1766100790915,3.6724,2834.2,2833.7,0.558]
[1766100792166,1.1372,2834.4,2833.7,0.558]
[1766100792321,1.1372,2834.4,2833.6,0.001]
[1766100792322,7.29759817,2834.5,2833.6,0.559]
[1766100792524,4.08583461,2834.6,2833.6,0.559]
[1766100792729,2.5944,2834.3,2833.6,0.559]
[1766100793050,4.08583461,2834.6,2833.6,0.559]
[1766100793051,3.8173,2833.9,2833.6,0.559]
[1766100794544,2.5944,2834.5,2833.6,0.559]
[1766100794854,1.2229,2834.6,2834.1,7.29958731]
[1766100795018,2.5944,2834.7,2834.1,7.29958731]
[1766100795217,0.46438023,2834.8,2834.1,7.29958731]
[1766100795454,3.05878023,2834.8,2834.1,7.29958731]
[1766100795622,3.8173,2834.7,2834.1,7.29958731]
[1766100799885,3.8173,2834.7,2834.1,8.08534604]
[1766100802276,0.46438023,2835.4,2834.1,8.08534604]
[1766100802576,0.46438023,2835.0,2834.4,7.29958731]
[1766100802749,2.5944,2835.5,2834.5,0.558]
[1766100802953,0.46438023,2835.2,2834.5,0.558]
[1766100803154,3.8173,2835.2,2834.5,0.558]
[1766100803363,3.8173,2835.2,2834.5,1.4167546]
[1766100804279,0.001,2834.8,2834.5,1.4167546]
[1766100804580,3.8173,2835.2,2834.5,1.4167546]
[1766100805880,0.56,2835.6,2834.5,1.4167546]
[1766100805881,2.5944,2835.5,2834.5,1.4167546]
[1766100806177,2.5944,2835.2,2834.5,0.558]
[1766100806378,3.8173,2835.1,2834.5,0.558]
[1766100809958,2.5944,2835.5,2834.5,7.85758731]
[1766100810288,0.002,2835.6,2834.6,0.78575873]
[1766100810289,1.2229,2835.4,2834.6,0.78575873]
[1766100810489,0.56,2835.6,2834.6,0.78575873]
[1766100810490,3.8173,2835.3,2834.6,0.78575873]
[1766100811670,0.56,2835.6,2834.6,0.78575873]